[Event "SM-blixten 2025"]
[Site "Uppsala, Sweden"]
[Date "2025.07.03"]
[Round "3.5"]
[White "Tornberg, Carlos"]
[Black "Olund, Joar"]
[Result "1/2-1/2"]
[TimeControl "3 min + 2 sec increment starting from move 1"]
[BlackTitle "FM"]
[WhiteElo "2164"]
[BlackElo "2369"]

1. e4 {[%clk 00:03:04]} e5 {[%clk 00:03:03]} {[%emt 00:00:01]} 2. Nf3 {[%clk
00:03:05]} Nc6 {[%clk 00:03:05]} {[%emt 00:00:01]} 3. Nc3 {[%clk 00:03:05]} Nf6
{[%clk 00:03:05]} {[%emt 00:00:01]} 4. h3 {[%clk 00:03:07]} Bb4 {[%clk
00:03:05]} {[%emt 00:00:02]} 5. a3 {[%clk 00:03:06]} {[%emt 00:00:02]} Bxc3
{[%clk 00:03:06]} {[%emt 00:00:02]} 6. dxc3 {[%clk 00:03:07]} Nxe4 {[%clk
00:03:07]} {[%emt 00:00:01]} 7. Nxe5 {[%clk 00:02:52]} {[%emt 00:00:17]} Nxe5
{[%clk 00:03:04]} {[%emt 00:00:06]} 8. Qd5 {[%clk 00:02:48]} {[%emt 00:00:05]}
O-O {[%clk 00:03:04]} {[%emt 00:00:02]} 9. Qxe4 {[%clk 00:02:44]} {[%emt
00:00:06]} d5 {[%clk 00:03:05]} {[%emt 00:00:01]} 10. Qd4 {[%clk 00:02:40]}
{[%emt 00:00:07]} Nc6 {[%clk 00:03:06]} {[%emt 00:00:01]} 11. Qd3 {[%clk
00:02:34]} {[%emt 00:00:08]} d4 {[%clk 00:03:04]} {[%emt 00:00:04]} 12. cxd4
{[%clk 00:02:18]} {[%emt 00:00:17]} Nxd4 {[%clk 00:03:05]} {[%emt 00:00:02]} 13.
Be3 {[%clk 00:02:13]} {[%emt 00:00:07]} Nf5 {[%clk 00:03:01]} {[%emt 00:00:05]}
14. Qxd8 Rxd8 {[%clk 00:03:02]} 15. Bf4 {[%clk 00:01:55]} {[%emt 00:00:05]}
Re8+ {[%clk 00:03:00]} {[%emt 00:00:04]} 16. Kd2 {[%clk 00:01:51]} {[%emt
00:00:06]} Nd4 {[%clk 00:02:04]} {[%emt 00:00:58]} 17. Bd3 {[%clk 00:01:35]}
{[%emt 00:00:18]} Bf5 {[%clk 00:01:57]} {[%emt 00:00:08]} 18. Be3 {[%clk
00:01:30]} {[%emt 00:00:09]} Rad8 {[%clk 00:01:21]} {[%emt 00:00:36]} 19. Bxd4
{[%clk 00:00:49]} {[%emt 00:00:43]} Rxd4 {[%clk 00:01:22]} {[%emt 00:00:01]} 20.
Rhe1 {[%clk 00:00:51]} Red8 {[%clk 00:01:16]} {[%emt 00:00:07]} 21. Re3 {[%clk
00:00:52]} {[%emt 00:00:01]} Bxd3 {[%clk 00:01:09]} {[%emt 00:00:10]} 22. Rxd3
{[%clk 00:00:48]} {[%emt 00:00:06]} Rxd3+ 23. cxd3 {[%clk 00:00:49]} f6 {[%clk
00:01:04]} {[%emt 00:00:07]} 24. Rc1 {[%clk 00:00:49]} {[%emt 00:00:02]} c6
{[%clk 00:01:05]} {[%emt 00:00:01]} 25. Rc4 {[%clk 00:00:47]} {[%emt 00:00:04]}
Rd5 {[%clk 00:01:03]} {[%emt 00:00:05]} 26. Ke3 {[%clk 00:00:44]} {[%emt
00:00:05]} Kf7 {[%clk 00:01:03]} {[%emt 00:00:02]} 27. Re4 {[%clk 00:00:38]}
{[%emt 00:00:07]} h5 {[%clk 00:00:53]} {[%emt 00:00:12]} 28. f4 {[%clk
00:00:36]} {[%emt 00:00:05]} a5 {[%clk 00:00:34]} {[%emt 00:00:21]} 29. g4
{[%clk 00:00:35]} {[%emt 00:00:02]} hxg4 {[%clk 00:00:27]} {[%emt 00:00:09]} 30.
hxg4 {[%clk 00:00:36]} f5 {[%clk 00:00:26]} {[%emt 00:00:03]} 31. gxf5 {[%clk
00:00:27]} {[%emt 00:00:11]} Rxf5 {[%clk 00:00:27]} {[%emt 00:00:02]} 32. b4
{[%clk 00:00:18]} {[%emt 00:00:11]} Rh5 {[%clk 00:00:23]} {[%emt 00:00:05]} 33.
Kd4 {[%clk 00:00:11]} {[%emt 00:00:09]} Rd5+ {[%clk 00:00:19]} {[%emt
00:00:06]} 34. Kc4 {[%clk 00:00:12]} {[%emt 00:00:01]} b5+ {[%clk 00:00:17]}
{[%emt 00:00:05]} 35. Kc3 {[%clk 00:00:13]} {[%emt 00:00:01]} a4 {[%clk
00:00:16]} {[%emt 00:00:03]} 36. d4 {[%clk 00:00:10]} {[%emt 00:00:04]} Kf6
{[%clk 00:00:15]} {[%emt 00:00:03]} 37. Re5 {[%clk 00:00:09]} {[%emt 00:00:03]}
Rd6 {[%clk 00:00:05]} {[%emt 00:00:13]} 38. Kd3 {[%clk 00:00:11]} g6 {[%clk
00:00:05]} {[%emt 00:00:02]} 39. Ke4 {[%clk 00:00:12]} Re6 {[%clk 00:00:06]}
{[%emt 00:00:02]} 40. Ke3 {[%clk 00:00:09]} {[%emt 00:00:04]} Rd6 {[%clk
00:00:07]} {[%emt 00:00:02]} 41. Ke4 {[%clk 00:00:10]} Re6 {[%clk 00:00:09]} 42.
Ke3 {[%clk 00:00:12]} Rd6 {[%clk 00:00:10]} 1/2-1/2

[Event "SM-blixten 2025"]
[Site "Uppsala, Sweden"]
[Date "2025.07.03"]
[Round "5.1"]
[White "Nygren, Kim"]
[Black "Galperin, Platon"]
[Result "0-1"]
[TimeControl "3 min + 2 sec increment starting from move 1"]
[WhiteTitle "CM"]
[BlackTitle "GM"]
[WhiteElo "2173"]
[BlackElo "2506"]

1. e4 {[%clk 00:03:02]} {[%emt 00:00:02]} g6 {[%clk 00:03:03]} {[%emt
00:00:01]} 2. d4 {[%clk 00:03:02]} {[%emt 00:00:01]} d6 {[%clk 00:03:04]}
{[%emt 00:00:02]} 3. Be3 {[%clk 00:03:03]} {[%emt 00:00:01]} Bg7 {[%clk
00:03:04]} {[%emt 00:00:01]} 4. Be2 {[%clk 00:03:03]} {[%emt 00:00:02]} a6
{[%clk 00:03:03]} {[%emt 00:00:04]} 5. a4 {[%clk 00:03:00]} {[%emt 00:00:05]}
Nf6 {[%clk 00:03:02]} {[%emt 00:00:02]} 6. Nc3 {[%clk 00:02:59]} {[%emt
00:00:03]} Nc6 {[%clk 00:03:02]} {[%emt 00:00:03]} 7. d5 {[%clk 00:02:56]}
{[%emt 00:00:05]} Nb4 {[%clk 00:03:02]} {[%emt 00:00:02]} 8. h3 {[%clk
00:02:47]} {[%emt 00:00:11]} O-O {[%clk 00:03:00]} {[%emt 00:00:04]} 9. Nf3
{[%clk 00:02:48]} {[%emt 00:00:01]} e6 {[%clk 00:03:00]} {[%emt 00:00:03]} 10.
dxe6 {[%clk 00:02:40]} {[%emt 00:00:10]} Bxe6 {[%clk 00:03:00]} {[%emt
00:00:02]} 11. O-O {[%clk 00:02:38]} {[%emt 00:00:03]} Re8 {[%clk 00:03:00]}
{[%emt 00:00:02]} 12. a5 {[%clk 00:02:32]} {[%emt 00:00:08]} Bd7 {[%clk
00:02:58]} {[%emt 00:00:03]} 13. Bd3 {[%clk 00:02:24]} {[%emt 00:00:10]} Bc6
{[%clk 00:02:57]} {[%emt 00:00:03]} 14. Bd4 {[%clk 00:02:20]} {[%emt 00:00:07]}
Nh5 {[%clk 00:02:29]} {[%emt 00:00:30]} 15. Bxg7 {[%clk 00:02:15]} {[%emt
00:00:07]} Kxg7 {[%clk 00:02:30]} {[%emt 00:00:02]} 16. Re1 {[%clk 00:01:27]}
{[%emt 00:00:49]} Qf6 {[%clk 00:02:30]} {[%emt 00:00:02]} 17. Bf1 {[%clk
00:01:22]} {[%emt 00:00:07]} Nf4 {[%clk 00:02:28]} {[%emt 00:00:03]} 18. Nd4
{[%clk 00:01:14]} {[%emt 00:00:11]} Bd7 {[%clk 00:02:24]} {[%emt 00:00:06]} 19.
Re3 {[%clk 00:01:12]} {[%emt 00:00:04]} d5 {[%clk 00:02:19]} {[%emt 00:00:07]}
20. exd5 {[%clk 00:00:51]} {[%emt 00:00:22]} Rxe3 {[%clk 00:02:18]} {[%emt
00:00:03]} 21. fxe3 {[%clk 00:00:53]} {[%emt 00:00:01]} Nfxd5 {[%clk 00:02:18]}
{[%emt 00:00:02]} 22. Nxd5 {[%clk 00:00:24]} {[%emt 00:00:30]} Nxd5 {[%clk
00:02:19]} {[%emt 00:00:02]} 23. Ra3 {[%clk 00:00:21]} {[%emt 00:00:05]} Re8
{[%clk 00:02:18]} {[%emt 00:00:02]} 24. Qd2 {[%clk 00:00:19]} {[%emt 00:00:05]}
Qe7 {[%clk 00:01:53]} {[%emt 00:00:27]} 25. c4 {[%clk 00:00:11]} {[%emt
00:00:10]} Nxe3 {[%clk 00:01:51]} {[%emt 00:00:03]} 26. Be2 {[%clk 00:00:04]}
{[%emt 00:00:10]} c5 {[%clk 00:01:16]} {[%emt 00:00:37]} 27. Nf3 {[%clk
00:00:05]} {[%emt 00:00:01]} Nxg2 {[%clk 00:01:12]} {[%emt 00:00:06]} 28. Qc3+
{[%clk 00:00:05]} {[%emt 00:00:02]} Qf6 {[%clk 00:01:06]} {[%emt 00:00:08]} 29.
Qxf6+ {[%clk 00:00:06]} {[%emt 00:00:01]} Kxf6 {[%clk 00:01:07]} {[%emt
00:00:01]} 30. Bf1 {[%clk 00:00:05]} {[%emt 00:00:02]} Nf4 {[%clk 00:01:07]}
{[%emt 00:00:02]} 31. Rb3 {[%clk 00:00:06]} {[%emt 00:00:02]} Bc6 {[%clk
00:01:07]} {[%emt 00:00:02]} 32. Nd2 {[%clk 00:00:07]} {[%emt 00:00:01]} Rd8
{[%clk 00:01:05]} {[%emt 00:00:03]} 33. Nb1 {[%clk 00:00:07]} {[%emt 00:00:03]}
Rd1 {[%clk 00:01:04]} {[%emt 00:00:03]} 34. Nc3 {[%clk 00:00:08]} {[%emt
00:00:01]} Nxh3+ {[%clk 00:01:04]} {[%emt 00:00:02]} 35. Kh2 {[%clk 00:00:05]}
{[%emt 00:00:05]} Rxf1 {[%clk 00:01:04]} {[%emt 00:00:02]} 36. Kxh3 {[%clk
00:00:07]} Ke5 {[%clk 00:01:03]} {[%emt 00:00:02]} 37. Ne2 {[%clk 00:00:05]}
{[%emt 00:00:03]} Rf3+ {[%clk 00:01:03]} {[%emt 00:00:02]} 38. Rxf3 {[%clk
00:00:06]} {[%emt 00:00:01]} Bxf3 {[%emt 00:00:02]} 0-1

[Event "SM-blixten 2025"]
[Site "Uppsala, Sweden"]
[Date "2025.07.03"]
[Round "6.7"]
[White "Karlsson, Stefan 2005"]
[Black "Gruvaeus, Curt"]
[Result "0-1"]
[TimeControl "3 min + 2 sec increment starting from move 1"]
[BlackTitle "FM"]
[WhiteElo "2127"]
[BlackElo "2156"]

1. d3 {[%clk 00:03:03]} g6 {[%clk 00:03:01]} {[%emt 00:00:04]} 2. Nd2 {[%clk
00:03:04]} {[%emt 00:00:01]} Bg7 {[%clk 00:03:02]} {[%emt 00:00:01]} 3. g3
{[%clk 00:03:05]} c5 {[%clk 00:03:02]} {[%emt 00:00:03]} 4. Bg2 {[%clk
00:03:06]} Nc6 {[%clk 00:03:03]} 5. e4 {[%clk 00:03:07]} {[%emt 00:00:02]} e6
{[%clk 00:03:02]} {[%emt 00:00:03]} 6. Nh3 {[%clk 00:03:07]} {[%emt 00:00:02]}
Nge7 {[%clk 00:03:02]} {[%emt 00:00:02]} 7. O-O {[%clk 00:03:07]} {[%emt
00:00:01]} d5 {[%clk 00:03:01]} {[%emt 00:00:03]} 8. f4 {[%clk 00:03:06]}
{[%emt 00:00:03]} O-O {[%clk 00:02:53]} {[%emt 00:00:10]} 9. c3 {[%clk
00:03:04]} {[%emt 00:00:04]} b6 {[%clk 00:02:47]} {[%emt 00:00:09]} 10. Nf2
{[%clk 00:02:58]} {[%emt 00:00:08]} Ba6 {[%clk 00:02:39]} {[%emt 00:00:10]} 11.
a4 {[%clk 00:02:43]} {[%emt 00:00:17]} dxe4 {[%clk 00:02:29]} {[%emt 00:00:12]}
12. Ndxe4 {[%clk 00:02:41]} {[%emt 00:00:03]} Qc7 {[%clk 00:02:26]} {[%emt
00:00:06]} 13. Qf3 {[%clk 00:02:21]} {[%emt 00:00:22]} Rad8 {[%clk 00:02:20]}
{[%emt 00:00:08]} 14. Rd1 {[%clk 00:02:22]} h6 {[%clk 00:02:08]} {[%emt
00:00:14]} 15. Bf1 {[%clk 00:02:10]} {[%emt 00:00:14]} Bb7 {[%clk 00:02:09]}
{[%emt 00:00:02]} 16. Qe2 {[%clk 00:01:48]} {[%emt 00:00:24]} f5 {[%clk
00:01:49]} {[%emt 00:00:21]} 17. Nd2 {[%clk 00:01:40]} {[%emt 00:00:10]} e5
{[%clk 00:01:50]} {[%emt 00:00:02]} 18. Nc4 {[%clk 00:01:34]} {[%emt 00:00:07]}
Rfe8 {[%clk 00:01:32]} {[%emt 00:00:21]} 19. fxe5 {[%clk 00:01:27]} {[%emt
00:00:09]} Nxe5 {[%clk 00:01:32]} {[%emt 00:00:02]} 20. Nxe5 {[%clk 00:01:26]}
{[%emt 00:00:03]} Bxe5 {[%clk 00:01:32]} {[%emt 00:00:01]} 21. Nh3 {[%clk
00:01:02]} {[%emt 00:00:26]} Kh7 {[%clk 00:01:19]} {[%emt 00:00:16]} 22. Bg2
{[%clk 00:00:56]} {[%emt 00:00:07]} Nd5 {[%clk 00:01:19]} {[%emt 00:00:02]} 23.
Qd2 {[%clk 00:00:52]} {[%emt 00:00:07]} Qg7 {[%clk 00:01:11]} {[%emt 00:00:09]}
24. c4 {[%clk 00:00:42]} {[%emt 00:00:12]} Ne3 {[%clk 00:01:03]} {[%emt
00:00:11]} 25. Bxb7 {[%clk 00:00:26]} {[%emt 00:00:18]} Qxb7 {[%clk 00:01:00]}
{[%emt 00:00:04]} 26. Re1 {[%clk 00:00:22]} {[%emt 00:00:07]} Bd4 {[%clk
00:00:58]} {[%emt 00:00:03]} 27. Nf2 {[%clk 00:00:23]} {[%emt 00:00:02]} Ng4
{[%clk 00:00:56]} {[%emt 00:00:04]} 28. Rf1 {[%clk 00:00:16]} {[%emt 00:00:08]}
g5 {[%clk 00:00:50]} {[%emt 00:00:08]} 29. h3 {[%clk 00:00:11]} {[%emt
00:00:07]} Nxf2 {[%clk 00:00:45]} {[%emt 00:00:08]} 30. Rxf2 {[%clk 00:00:12]}
Qf3 {[%clk 00:00:42]} {[%emt 00:00:04]} 31. Qc2 {[%clk 00:00:08]} {[%emt
00:00:07]} Qxg3+ {[%clk 00:00:38]} {[%emt 00:00:06]} 0-1

[Event "SM-blixten 2025"]
[Site "Uppsala, Sweden"]
[Date "2025.07.03"]
[Round "8.3"]
[White "Grahn, Vidar"]
[Black "Pantzar, Milton"]
[Result "1-0"]
[TimeControl "3 min + 2 sec increment starting from move 1"]
[WhiteTitle "FM"]
[BlackTitle "IM"]
[WhiteElo "2239"]
[BlackElo "2444"]

1. e4 {[%clk 00:03:03]} {[%emt 00:05:20]} c6 {[%clk 00:03:01]} {[%emt
00:00:04]} 2. Nf3 {[%clk 00:03:03]} {[%emt 00:00:02]} d5 {[%clk 00:03:02]} 3.
d3 {[%clk 00:03:04]} {[%emt 00:00:01]} dxe4 {[%clk 00:03:00]} {[%emt 00:00:04]}
4. dxe4 {[%clk 00:03:06]} Qxd1+ {[%clk 00:02:59]} {[%emt 00:00:02]} 5. Kxd1
{[%clk 00:03:07]} Nf6 {[%clk 00:03:00]} 6. Nbd2 {[%clk 00:03:08]} {[%emt
00:00:01]} Nbd7 {[%clk 00:02:58]} {[%emt 00:00:04]} 7. Ne1 {[%clk 00:03:08]}
{[%emt 00:00:02]} e5 {[%clk 00:02:54]} {[%emt 00:00:06]} 8. Nd3 {[%clk
00:03:08]} {[%emt 00:00:02]} Nc5 {[%clk 00:02:43]} {[%emt 00:00:13]} 9. f3
{[%clk 00:03:09]} Nfd7 {[%clk 00:02:41]} {[%emt 00:00:04]} 10. Nc4 {[%clk
00:03:06]} {[%emt 00:00:05]} f6 {[%clk 00:02:33]} {[%emt 00:00:10]} 11. a4
{[%clk 00:03:04]} {[%emt 00:00:05]} a5 {[%clk 00:02:21]} {[%emt 00:00:13]} 12.
Be3 {[%clk 00:03:00]} {[%emt 00:00:05]} Kd8 {[%clk 00:02:16]} {[%emt 00:00:08]}
13. b3 {[%clk 00:02:53]} {[%emt 00:00:09]} Kc7 {[%clk 00:02:17]} {[%emt
00:00:02]} 14. Ke1 {[%clk 00:02:39]} {[%emt 00:00:14]} Nxd3+ {[%clk 00:02:16]}
{[%emt 00:00:04]} 15. Bxd3 {[%clk 00:02:41]} Bc5 {[%clk 00:02:17]} {[%emt
00:00:02]} 16. Kf2 {[%clk 00:02:41]} {[%emt 00:00:02]} Bxe3+ {[%clk 00:02:04]}
{[%emt 00:00:15]} 17. Nxe3 {[%clk 00:02:41]} {[%emt 00:00:02]} Nc5 {[%clk
00:02:04]} {[%emt 00:00:02]} 18. Bc4 {[%clk 00:02:42]} {[%emt 00:00:01]} Bd7
{[%clk 00:01:54]} {[%emt 00:00:12]} 19. h4 {[%clk 00:02:38]} {[%emt 00:00:06]}
Rhd8 {[%clk 00:01:42]} {[%emt 00:00:15]} 20. h5 {[%clk 00:02:34]} {[%emt
00:00:05]} h6 {[%clk 00:01:43]} 21. Rhd1 {[%clk 00:02:32]} {[%emt 00:00:04]}
Rab8 {[%clk 00:01:23]} {[%emt 00:00:22]} 22. Rd2 {[%clk 00:02:14]} {[%emt
00:00:20]} Be6 {[%clk 00:01:09]} {[%emt 00:00:16]} 23. Rad1 {[%clk 00:02:14]}
{[%emt 00:00:01]} Rxd2+ 24. Rxd2 {[%clk 00:02:15]} Bd7 {[%clk 00:00:56]} {[%emt
00:00:10]} 25. Be2 {[%clk 00:02:04]} {[%emt 00:00:12]} Rf8 {[%clk 00:00:49]}
{[%emt 00:00:11]} 26. Nc4 {[%clk 00:02:00]} {[%emt 00:00:05]} b6 {[%clk
00:00:32]} {[%emt 00:00:20]} 27. g4 {[%clk 00:01:59]} {[%emt 00:00:03]} Rf7
{[%clk 00:00:25]} {[%emt 00:00:08]} 28. Ke3 {[%clk 00:01:58]} {[%emt 00:00:03]}
Ne6 {[%clk 00:00:26]} {[%emt 00:00:01]} 29. Nd6 {[%clk 00:01:54]} {[%emt
00:00:06]} Re7 {[%clk 00:00:27]} {[%emt 00:00:02]} 30. Nf5 {[%clk 00:01:54]}
{[%emt 00:00:02]} Rf7 {[%clk 00:00:27]} {[%emt 00:00:01]} 31. Bc4 {[%clk
00:01:54]} {[%emt 00:00:02]} b5 {[%clk 00:00:13]} {[%emt 00:00:16]} 32. axb5
{[%clk 00:01:50]} {[%emt 00:00:06]} cxb5 {[%clk 00:00:15]} 33. Bxe6 {[%clk
00:01:50]} {[%emt 00:00:02]} Bxe6 {[%clk 00:00:16]} {[%emt 00:00:01]} 34. Nd6
{[%clk 00:01:50]} {[%emt 00:00:01]} Rd7 {[%clk 00:00:12]} {[%emt 00:00:06]} 35.
Nxb5+ {[%clk 00:01:51]} {[%emt 00:00:01]} Kc6 {[%clk 00:00:14]} 36. Rxd7 {[%clk
00:01:48]} {[%emt 00:00:04]} Bxd7 {[%clk 00:00:15]} {[%emt 00:00:01]} 37. Nc3
{[%clk 00:01:42]} {[%emt 00:00:08]} Kc5 {[%clk 00:00:10]} {[%emt 00:00:08]} 38.
Nd5 {[%clk 00:01:43]} {[%emt 00:00:01]} Be6 {[%clk 00:00:07]} {[%emt 00:00:04]}
39. Nc7 {[%clk 00:01:28]} {[%emt 00:00:14]} Bf7 {[%clk 00:00:08]} {[%emt
00:00:04]} 40. Kd3 {[%clk 00:01:24]} {[%emt 00:00:06]} Kb4 {[%clk 00:00:07]}
{[%emt 00:00:04]} 41. Nd5+ {[%clk 00:01:24]} Ka3 {[%clk 00:00:09]} {[%emt
00:00:01]} 42. Ne7 {[%clk 00:01:23]} {[%emt 00:00:04]} Kb2 {[%clk 00:00:06]}
{[%emt 00:00:05]} 43. Nf5 {[%clk 00:01:22]} {[%emt 00:00:03]} Bxb3 {[%clk
00:00:06]} {[%emt 00:00:02]} 44. cxb3 {[%clk 00:01:20]} {[%emt 00:00:03]} Kxb3
{[%clk 00:00:07]} {[%emt 00:00:01]} 45. Ne3 {[%clk 00:01:17]} {[%emt 00:00:04]}
a4 {[%clk 00:00:08]} {[%emt 00:00:02]} 46. Nc4 {[%clk 00:01:10]} {[%emt
00:00:09]} Kb4 {[%clk 00:00:05]} {[%emt 00:00:05]} 47. Nd2 {[%clk 00:01:02]}
{[%emt 00:00:09]} a3 {[%clk 00:00:06]} {[%emt 00:00:02]} 48. Kc2 {[%clk
00:01:03]} a2 {[%clk 00:00:06]} {[%emt 00:00:02]} 49. Kb2 {[%clk 00:00:38]}
{[%emt 00:00:28]} a1=Q+ {[%clk 00:00:06]} {[%emt 00:00:01]} 50. Kxa1 {[%clk
00:00:39]} {[%emt 00:00:02]} Kc3 {[%clk 00:00:08]} 51. Nf1 {[%clk 00:00:37]}
{[%emt 00:00:03]} Kd3 {[%clk 00:00:09]} {[%emt 00:00:01]} 52. Ng3 {[%clk
00:00:13]} {[%emt 00:00:27]} Ke3 {[%clk 00:00:10]} 53. Nf5+ {[%clk 00:00:14]}
Kxf3 {[%clk 00:00:11]} {[%emt 00:00:02]} 54. Nxg7 {[%clk 00:00:13]} {[%emt
00:00:02]} Kxg4 {[%clk 00:00:08]} {[%emt 00:00:05]} 55. Kb2 {[%clk 00:00:11]}
{[%emt 00:00:05]} Kf4 {[%clk 00:00:09]} 56. Nf5 {[%clk 00:00:11]} {[%emt
00:00:01]} Kg5 {[%clk 00:00:07]} {[%emt 00:00:04]} 57. Kc3 {[%clk 00:00:09]}
{[%emt 00:00:04]} Kxh5 {[%clk 00:00:08]} {[%emt 00:00:02]} 58. Kd3 {[%clk
00:00:10]} Kg5 {[%clk 00:00:04]} {[%emt 00:00:06]} 59. Ke3 {[%clk 00:00:11]}
{[%emt 00:00:02]} h5 {[%clk 00:00:03]} {[%emt 00:00:03]} 60. Kf3 {[%clk
00:00:12]} {[%emt 00:00:01]} Kg6 {[%clk 00:00:03]} {[%emt 00:00:02]} 61. Kg3
{[%clk 00:00:12]} {[%emt 00:00:01]} Kg5 {[%clk 00:00:04]} 62. Kf3 {[%clk
00:00:05]} {[%emt 00:00:11]} Kg6 {[%clk 00:00:05]} 63. Kg2 {[%clk 00:00:06]}
Kg5 {[%clk 00:00:03]} {[%emt 00:00:04]} 64. Kg3 {[%clk 00:00:07]} h4+ {[%clk
00:00:03]} {[%emt 00:00:02]} 65. Kf3 {[%clk 00:00:08]} {[%emt 00:00:01]} h3
{[%clk 00:00:03]} {[%emt 00:00:02]} 66. Kg3 {[%clk 00:00:10]} h2 {[%clk
00:00:04]} 67. Kxh2 {[%clk 00:00:11]} Kf4 {[%clk 00:00:06]} 68. Nd6 {[%clk
00:00:12]} Kg4 {[%clk 00:00:05]} {[%emt 00:00:02]} 69. Kg2 {[%clk 00:00:13]}
{[%emt 00:00:01]} Kf4 {[%clk 00:00:06]} 70. Kf2 {[%clk 00:00:14]} Kg4 {[%clk
00:00:07]} {[%emt 00:00:02]} 71. Ke3 {[%clk 00:00:16]} Kg3 {[%clk 00:00:09]}
{[%emt 00:00:01]} 72. Kd3 {[%clk 00:00:17]} Kf4 {[%clk 00:00:05]} {[%emt
00:00:06]} 73. Kc4 {[%clk 00:00:18]} {[%emt 00:00:01]} f5 {[%clk 00:00:04]}
{[%emt 00:00:04]} 74. exf5 {[%clk 00:00:19]} {[%emt 00:00:01]} e4 {[%clk
00:00:06]} 75. f6 {[%clk 00:00:19]} {[%emt 00:00:02]} e3 {[%clk 00:00:07]} 76.
f7 {[%clk 00:00:20]} {[%emt 00:00:01]} e2 {[%clk 00:00:08]} {[%emt 00:00:01]}
77. f8=Q {[%clk 00:00:20]} {[%emt 00:00:02]} 1-0

[Event "SM-blixten 2025"]
[Site "Uppsala, Sweden"]
[Date "2025.07.03"]
[Round "9.9"]
[White "Jonsson, Mikael"]
[Black "Ask, Josef"]
[Result "1-0"]
[TimeControl "3 min + 2 sec increment starting from move 1"]
[BlackTitle "FM"]
[WhiteElo "2204"]
[BlackElo "2130"]

1. e4 {[%clk 00:03:01]} {[%emt 00:00:02]} Nc6 {[%clk 00:03:04]} {[%emt
00:00:01]} 2. d4 {[%clk 00:02:55]} {[%emt 00:00:07]} d5 {[%clk 00:03:05]}
{[%emt 00:00:02]} 3. e5 {[%clk 00:02:52]} {[%emt 00:00:05]} Bf5 {[%clk
00:03:06]} {[%emt 00:00:01]} 4. c3 {[%clk 00:02:42]} {[%emt 00:00:12]} e6
{[%clk 00:03:06]} {[%emt 00:00:01]} 5. Be3 {[%clk 00:02:42]} {[%emt 00:00:02]}
h5 {[%clk 00:03:02]} {[%emt 00:00:07]} 6. Nd2 {[%clk 00:02:41]} {[%emt
00:00:02]} f6 {[%clk 00:02:44]} {[%emt 00:00:20]} 7. f4 {[%clk 00:02:18]}
{[%emt 00:00:25]} Nh6 {[%clk 00:02:44]} {[%emt 00:00:03]} 8. Qxh5+ {[%clk
00:02:14]} {[%emt 00:00:06]} g6 {[%clk 00:02:34]} {[%emt 00:00:12]} 9. Qe2
{[%clk 00:01:49]} {[%emt 00:00:27]} Ng4 {[%clk 00:02:22]} {[%emt 00:00:14]} 10.
Ngf3 {[%clk 00:01:36]} {[%emt 00:00:14]} Bh6 {[%clk 00:02:18]} {[%emt
00:00:07]} 11. h3 {[%clk 00:01:15]} {[%emt 00:00:22]} Nxe3 {[%clk 00:02:15]}
{[%emt 00:00:05]} 12. Qxe3 {[%clk 00:01:16]} {[%emt 00:00:02]} fxe5 {[%clk
00:02:14]} {[%emt 00:00:03]} 13. dxe5 {[%clk 00:01:13]} {[%emt 00:00:05]} d4
{[%clk 00:02:02]} {[%emt 00:00:14]} 14. Nxd4 {[%clk 00:01:10]} {[%emt
00:00:05]} Nxd4 {[%clk 00:01:45]} {[%emt 00:00:19]} 15. cxd4 {[%clk 00:01:10]}
{[%emt 00:00:02]} g5 {[%clk 00:01:39]} {[%emt 00:00:07]} 16. Nf3 {[%clk
00:00:48]} {[%emt 00:00:24]} gxf4 {[%clk 00:01:31]} {[%emt 00:00:11]} 17. Qb3
{[%clk 00:00:48]} {[%emt 00:00:02]} b6 {[%clk 00:01:03]} {[%emt 00:00:30]} 18.
Bc4 {[%clk 00:00:46]} {[%emt 00:00:03]} Qd7 {[%clk 00:00:54]} {[%emt 00:00:12]}
19. d5 {[%clk 00:00:44]} {[%emt 00:00:03]} O-O-O {[%clk 00:00:42]} {[%emt
00:00:14]} 20. dxe6 {[%clk 00:00:35]} {[%emt 00:00:12]} Qc6 {[%clk 00:00:35]}
{[%emt 00:00:09]} 21. O-O {[%clk 00:00:28]} {[%emt 00:00:09]} Qc5+ {[%clk
00:00:28]} {[%emt 00:00:09]} 22. Kh2 {[%clk 00:00:27]} {[%emt 00:00:03]} Rhg8
{[%clk 00:00:16]} {[%emt 00:00:14]} 23. e7 {[%clk 00:00:21]} {[%emt 00:00:07]}
Rxg2+ {[%clk 00:00:09]} {[%emt 00:00:09]} 24. Kxg2 {[%clk 00:00:22]} {[%emt
00:00:01]} Qxe7 {[%emt 00:00:01]} 25. Kh2 {[%clk 00:00:19]} {[%emt 00:00:05]}
Qc5 {[%clk 00:00:10]} {[%emt 00:00:03]} 26. Rae1 {[%clk 00:00:16]} {[%emt
00:00:05]} Rf8 {[%clk 00:00:05]} {[%emt 00:00:07]} 27. Re2 {[%clk 00:00:16]}
{[%emt 00:00:02]} Bg7 {[%clk 00:00:04]} {[%emt 00:00:04]} 28. Rg2 {[%clk
00:00:15]} {[%emt 00:00:02]} Rh8 {[%clk 00:00:04]} {[%emt 00:00:02]} 29. Be6+
{[%clk 00:00:14]} {[%emt 00:00:03]} Bxe6 {[%clk 00:00:04]} {[%emt 00:00:02]} 30.
Qxe6+ {[%clk 00:00:15]} Kb8 {[%clk 00:00:05]} 31. Rxg7 {[%clk 00:00:15]} {[%emt
00:00:02]} Qc2+ {[%clk 00:00:06]} {[%emt 00:00:01]} 32. Rg2 {[%clk 00:00:16]}
Qd3 {[%clk 00:00:07]} {[%emt 00:00:01]} 33. Rff2 {[%clk 00:00:17]} {[%emt
00:00:01]} Qe4 {[%clk 00:00:07]} {[%emt 00:00:02]} 34. Qf6 {[%clk 00:00:17]}
{[%emt 00:00:02]} Rh7 {[%clk 00:00:07]} {[%emt 00:00:02]} 35. e6 {[%clk
00:00:16]} {[%emt 00:00:03]} Kb7 {[%clk 00:00:04]} {[%emt 00:00:05]} 36. Ng5
{[%clk 00:00:15]} {[%emt 00:00:02]} Qc6 {[%emt 00:00:05]} 1-0